[Event "*** Titled Tuesday Blitz"]
[Site "Chess.com"]
[Date "2020.04.21"]
[Round "9"]
[White "joksijoksi"]
[Black "algatar2020"]
[Result "0-1"]
[WhiteElo "2356"]
[BlackElo "1983"]
[TimeControl "180+1"]
[EndTime "11:49:47 PDT"]
[Termination "algatar2020 won by resignation"]

1. e4 {[%clk 0:03:00.9]} 1... g6 {[%clk 0:02:59.3]} 2. d4 {[%clk 0:02:59.1]}
2... d6 {[%clk 0:02:59.5]} 3. Nc3 {[%clk 0:02:59.4]} 3... Bg7 {[%clk 0:02:59.7]}
4. g3 {[%clk 0:03:00]} 4... Nf6 {[%clk 0:02:59.7]} 5. Bg2 {[%clk 0:03:00.2]}
5... Nbd7 {[%clk 0:02:59]} 6. Nge2 {[%clk 0:02:59.9]} 6... e5 {[%clk 0:02:59.3]}
7. O-O {[%clk 0:02:59.9]} 7... O-O {[%clk 0:02:59]} 8. h3 {[%clk 0:02:59.7]}
8... c6 {[%clk 0:02:58.9]} 9. a4 {[%clk 0:02:58.7]} 9... Qc7 {[%clk 0:02:59]}
10. Be3 {[%clk 0:02:57.8]} 10... a5 {[%clk 0:02:55.8]} 11. g4 {[%clk 0:02:57.7]}
11... b6 {[%clk 0:02:46.2]} 12. Qd2 {[%clk 0:02:56.4]} 12... Ba6 {[%clk
0:02:45.4]} 13. f4 {[%clk 0:02:55.2]} 13... Rae8 {[%clk 0:02:39]} 14. dxe5
{[%clk 0:02:51.7]} 14... dxe5 {[%clk 0:02:38.7]} 15. f5 {[%clk 0:02:51.9]} 15...
Rd8 {[%clk 0:02:36.2]} 16. g5 {[%clk 0:02:39.5]} 16... Nh5 {[%clk 0:02:32.5]}
17. Qe1 {[%clk 0:02:34.6]} 17... Rfe8 {[%clk 0:02:31]} 18. Qf2 {[%clk
0:02:23.2]} 18... Nf4 {[%clk 0:02:05]} 19. Nxf4 {[%clk 0:02:01.2]} 19... Bxf1
{[%clk 0:02:02.2]} 20. Nfd5 {[%clk 0:01:45]} 20... cxd5 {[%clk 0:01:55.4]} 21.
Nxd5 {[%clk 0:01:44.7]} 21... Qd6 {[%clk 0:01:53.8]} 22. Rxf1 {[%clk 0:01:43]}
22... Nc5 {[%clk 0:01:53.5]} 23. Nxb6 {[%clk 0:01:08.4]} 23... Qxb6 {[%clk
0:01:52.4]} 24. Bxc5 {[%clk 0:01:07]} 24... Qxb2 {[%clk 0:01:36.3]} 25. fxg6
{[%clk 0:00:27]} 25... fxg6 {[%clk 0:01:35.7]} 26. Qf7+ {[%clk 0:00:27.4]} 26...
Kh8 {[%clk 0:01:35.2]} 27. Be7 {[%clk 0:00:27.3]} 27... Qb6+ {[%clk 0:01:14.8]}
28. Kh1 {[%clk 0:00:25.9]} 28... Rc8 {[%clk 0:01:01.3]} 29. Bf6 {[%clk
0:00:23.4]} 29... Bxf6 {[%clk 0:00:57.6]} 30. gxf6 {[%clk 0:00:22.1]} 30... Qc7
{[%clk 0:00:53.6]} 31. Qd5 {[%clk 0:00:11.2]} 31... Rf8 {[%clk 0:00:46.4]} 32.
f7 {[%clk 0:00:10.2]} 32... Rcd8 {[%clk 0:00:44.5]} 33. Qe6 {[%clk 0:00:04.3]}
33... Qd6 {[%clk 0:00:42.2]} 34. Qb3 {[%clk 0:00:04]} 34... Kg7 {[%clk
0:00:39.2]} 35. Rf2 {[%clk 0:00:02.6]} 35... Rd7 {[%clk 0:00:38.4]} 36. Bf1
{[%clk 0:00:02.6]} 36... Rdxf7 {[%clk 0:00:37.6]} 37. Rxf7+ {[%clk 0:00:01.7]}
37... Rxf7 {[%clk 0:00:37.3]} 38. Qe3 {[%clk 0:00:01]} 38... Qd4 {[%clk
0:00:33.9]} 39. Kg2 {[%clk 0:00:01.9]} 0-1

[Event "*** Titled Tuesday Blitz"]
[Site "Chess.com"]
[Date "2020.04.21"]
[Round "9"]
[White "PredragNikac"]
[Black "pedromartinez91"]
[Result "0-1"]
[WhiteElo "2279"]
[BlackElo "2435"]
[TimeControl "180+1"]
[EndTime "11:49:48 PDT"]
[Termination "pedromartinez91 won by checkmate"]

1. d4 {[%clk 0:03:00.9]} 1... Nf6 {[%clk 0:02:58.4]} 2. Bg5 {[%clk 0:03:00.4]}
2... Ne4 {[%clk 0:02:57.9]} 3. h4 {[%clk 0:03:00.2]} 3... c5 {[%clk 0:02:55.6]}
4. d5 {[%clk 0:03:00.1]} 4... Qb6 {[%clk 0:02:54.5]} 5. Nd2 {[%clk 0:02:59.6]}
5... Nxd2 {[%clk 0:02:52.3]} 6. Bxd2 {[%clk 0:02:57.8]} 6... h6 {[%clk 0:02:53]}
7. Bc3 {[%clk 0:02:55.4]} 7... d6 {[%clk 0:02:44.1]} 8. e4 {[%clk 0:02:54.9]}
8... Nd7 {[%clk 0:02:40.5]} 9. Nf3 {[%clk 0:02:54.2]} 9... Nf6 {[%clk
0:02:26.1]} 10. Nd2 {[%clk 0:02:53.9]} 10... e5 {[%clk 0:02:24]} 11. a4 {[%clk
0:02:51.5]} 11... Be7 {[%clk 0:02:12.3]} 12. Bb5+ {[%clk 0:02:50.2]} 12... Bd7
{[%clk 0:02:06.5]} 13. Nc4 {[%clk 0:02:50]} 13... Qc7 {[%clk 0:02:03.9]} 14. f3
{[%clk 0:02:40.8]} 14... Nh5 {[%clk 0:02:03]} 15. g4 {[%clk 0:02:38.4]} 15...
Nf4 {[%clk 0:02:02.7]} 16. Kf2 {[%clk 0:02:28]} 16... O-O {[%clk 0:01:59.9]} 17.
Bd2 {[%clk 0:02:17.1]} 17... Bc8 {[%clk 0:01:57]} 18. Bxf4 {[%clk 0:02:14.8]}
18... exf4 {[%clk 0:01:57.8]} 19. a5 {[%clk 0:02:12.2]} 19... Bf6 {[%clk
0:01:54.5]} 20. c3 {[%clk 0:02:12.1]} 20... Qe7 {[%clk 0:01:53.4]} 21. g5 {[%clk
0:02:06.3]} 21... hxg5 {[%clk 0:01:50.4]} 22. hxg5 {[%clk 0:02:07.2]} 22... Bxg5
{[%clk 0:01:49.7]} 23. Qg1 {[%clk 0:02:07.1]} 23... Bh4+ {[%clk 0:01:49]} 24.
Rxh4 {[%clk 0:02:02.2]} 24... Qxh4+ {[%clk 0:01:47]} 25. Ke2 {[%clk 0:02:02.2]}
25... Rd8 {[%clk 0:01:36.1]} 26. Rf1 {[%clk 0:01:39.8]} 26... Bh3 {[%clk
0:01:24.9]} 27. Rf2 {[%clk 0:01:39.9]} 27... Qg3 {[%clk 0:01:25.5]} 28. Qh1
{[%clk 0:01:38.5]} 28... g5 {[%clk 0:01:21.9]} 29. Nd2 {[%clk 0:01:22]} 29... g4
{[%clk 0:01:19.9]} 30. Ke1 {[%clk 0:00:56]} 30... Kg7 {[%clk 0:01:16.3]} 31.
fxg4 {[%clk 0:00:52.4]} 31... Rh8 {[%clk 0:01:12.3]} 32. Be2 {[%clk 0:00:41.3]}
32... Bxg4 {[%clk 0:01:01.4]} 33. Qf1 {[%clk 0:00:36.8]} 33... Bxe2 {[%clk
0:01:00.9]} 34. Kxe2 {[%clk 0:00:36.3]} 34... Rh2 {[%clk 0:01:00.5]} 35. Rxh2
{[%clk 0:00:34.2]} 35... Qxh2+ {[%clk 0:01:00.8]} 36. Kd3 {[%clk 0:00:34]} 36...
Rh8 {[%clk 0:00:57.1]} 37. Qd1 {[%clk 0:00:27.4]} 37... Rh3+ {[%clk 0:00:57]}
38. Kc4 {[%clk 0:00:27.3]} 38... Qg2 {[%clk 0:00:49]} 39. e5 {[%clk 0:00:23.4]}
39... f3 {[%clk 0:00:47.5]} 40. exd6 {[%clk 0:00:21.3]} 40... Rh4+ {[%clk
0:00:47.2]} 41. Kxc5 {[%clk 0:00:21]} 41... Qf2+ {[%clk 0:00:47.2]} 42. Kb5
{[%clk 0:00:15.5]} 42... a6# {[%clk 0:00:47.6]} 0-1

[Event "*** Titled Tuesday Blitz"]
[Site "Chess.com"]
[Date "2020.04.21"]
[Round "9"]
[White "dalmatinac101"]
[Black "Infernal_XaM"]
[Result "0-1"]
[WhiteElo "2821"]
[BlackElo "2955"]
[TimeControl "180+1"]
[EndTime "11:49:49 PDT"]
[Termination "Infernal_XaM won by checkmate"]

1. e4 {[%clk 0:03:00.9]} 1... c6 {[%clk 0:03:00.9]} 2. Nc3 {[%clk 0:02:59.8]}
2... d5 {[%clk 0:03:01]} 3. Nf3 {[%clk 0:03:00.7]} 3... Bg4 {[%clk 0:02:59.2]}
4. h3 {[%clk 0:03:00.6]} 4... Bh5 {[%clk 0:02:59.6]} 5. exd5 {[%clk 0:02:59.5]}
5... cxd5 {[%clk 0:02:58.8]} 6. g4 {[%clk 0:02:57.7]} 6... Bg6 {[%clk
0:02:58.4]} 7. Ne5 {[%clk 0:02:58.2]} 7... Nc6 {[%clk 0:02:57.9]} 8. d4 {[%clk
0:02:58]} 8... e6 {[%clk 0:02:47.8]} 9. h4 {[%clk 0:02:57.7]} 9... f6 {[%clk
0:02:47.6]} 10. h5 {[%clk 0:02:49.8]} 10... fxe5 {[%clk 0:02:13.3]} 11. hxg6
{[%clk 0:02:49.1]} 11... Nf6 {[%clk 0:02:12.8]} 12. g5 {[%clk 0:02:44.2]} 12...
exd4 {[%clk 0:01:57]} 13. gxf6 {[%clk 0:02:43.7]} 13... dxc3 {[%clk 0:01:55.9]}
14. Rxh7 {[%clk 0:02:34.3]} 14... Qxf6 {[%clk 0:01:55.5]} 15. Rxh8 {[%clk
0:02:30.5]} 15... cxb2 {[%clk 0:01:55.4]} 16. Bxb2 {[%clk 0:02:22]} 16... Qxb2
{[%clk 0:01:54.5]} 17. Rb1 {[%clk 0:02:19.6]} 17... Qe5+ {[%clk 0:01:43.7]} 18.
Qe2 {[%clk 0:02:17.3]} 18... O-O-O {[%clk 0:01:41.7]} 19. Qxe5 {[%clk
0:01:20.6]} 19... Nxe5 {[%clk 0:01:41.4]} 20. Bh3 {[%clk 0:01:16.1]} 20... Nxg6
{[%clk 0:01:20]} 21. Rh5 {[%clk 0:00:35.3]} 21... Nf4 {[%clk 0:01:12.8]} 22. Rh4
{[%clk 0:00:33.9]} 22... Bd6 {[%clk 0:01:05.4]} 23. Kf1 {[%clk 0:00:32.9]} 23...
Kc7 {[%clk 0:01:00.7]} 24. Rh7 {[%clk 0:00:30.6]} 24... Rd7 {[%clk 0:00:57]} 25.
Re1 {[%clk 0:00:29.6]} 25... Re7 {[%clk 0:00:55.4]} 26. Bg4 {[%clk 0:00:27.9]}
26... e5 {[%clk 0:00:51.9]} 27. Rh8 {[%clk 0:00:28.1]} 27... b6 {[%clk
0:00:41.3]} 28. f3 {[%clk 0:00:20.7]} 28... Bc5 {[%clk 0:00:33.4]} 29. c3 {[%clk
0:00:19.6]} 29... g6 {[%clk 0:00:32.6]} 30. Rd1 {[%clk 0:00:19.2]} 30... Kc6
{[%clk 0:00:31.7]} 31. a4 {[%clk 0:00:18.3]} 31... e4 {[%clk 0:00:21.7]} 32.
fxe4 {[%clk 0:00:17.5]} 32... Rxe4 {[%clk 0:00:21.4]} 33. Rc8+ {[%clk
0:00:11.3]} 33... Kb7 {[%clk 0:00:21.6]} 34. Rg8 {[%clk 0:00:10.8]} 34... Re3
{[%clk 0:00:20.7]} 35. Bc8+ {[%clk 0:00:09.2]} 35... Kc7 {[%clk 0:00:20.6]} 36.
Bg4 {[%clk 0:00:07]} 36... Rg3 {[%clk 0:00:20.6]} 37. Bc8 {[%clk 0:00:05.6]}
37... Rg1# {[%clk 0:00:20.1]} 0-1

[Event "*** Titled Tuesday Blitz"]
[Site "Chess.com"]
[Date "2020.04.21"]
[Round "9"]
[White "Karacsonyi_Gellert"]
[Black "ZAbdumalik"]
[Result "1/2-1/2"]
[WhiteElo "2519"]
[BlackElo "2681"]
[TimeControl "180+1"]
[EndTime "11:49:50 PDT"]
[Termination "Game drawn by repetition"]

1. e4 {[%clk 0:03:00.9]} 1... e5 {[%clk 0:02:58.8]} 2. Nf3 {[%clk 0:03:00.2]}
2... Nc6 {[%clk 0:02:59.1]} 3. Bb5 {[%clk 0:03:00.3]} 3... a6 {[%clk 0:02:59.2]}
4. Bxc6 {[%clk 0:03:00.4]} 4... dxc6 {[%clk 0:02:59.1]} 5. O-O {[%clk
0:03:00.9]} 5... f6 {[%clk 0:02:57.7]} 6. d4 {[%clk 0:03:00.4]} 6... exd4 {[%clk
0:02:56.3]} 7. Nxd4 {[%clk 0:03:01.3]} 7... Bd6 {[%clk 0:02:55.1]} 8. Nc3 {[%clk
0:02:59.2]} 8... Ne7 {[%clk 0:02:52.9]} 9. Be3 {[%clk 0:02:57.3]} 9... c5 {[%clk
0:02:42.2]} 10. Nb3 {[%clk 0:02:57.1]} 10... b6 {[%clk 0:02:42.6]} 11. Qe2
{[%clk 0:02:52.7]} 11... Be6 {[%clk 0:02:40.9]} 12. Rad1 {[%clk 0:02:51.4]}
12... O-O {[%clk 0:02:37.7]} 13. Bf4 {[%clk 0:02:50.5]} 13... Qb8 {[%clk
0:02:27.5]} 14. Bxd6 {[%clk 0:02:48.6]} 14... cxd6 {[%clk 0:02:28]} 15. Nd5
{[%clk 0:02:48.6]} 15... Nxd5 {[%clk 0:02:25.9]} 16. exd5 {[%clk 0:02:49.5]}
16... Bf5 {[%clk 0:02:23.5]} 17. c3 {[%clk 0:02:39.7]} 17... Re8 {[%clk
0:02:16.1]} 18. Qh5 {[%clk 0:02:27.5]} 18... Bg6 {[%clk 0:02:12.8]} 19. Qh3
{[%clk 0:02:22.9]} 19... Qb7 {[%clk 0:02:09.2]} 20. c4 {[%clk 0:02:08.2]} 20...
Re7 {[%clk 0:01:58.5]} 21. Rfe1 {[%clk 0:02:07.9]} 21... Rae8 {[%clk 0:01:58.6]}
22. Qc3 {[%clk 0:02:06.4]} 22... Qd7 {[%clk 0:01:54.9]} 23. Nc1 {[%clk
0:02:03.1]} 23... Qg4 {[%clk 0:01:52]} 24. f3 {[%clk 0:01:57]} 24... Qh4 {[%clk
0:01:45.2]} 25. g3 {[%clk 0:01:53.3]} 25... Qh5 {[%clk 0:01:44.9]} 26. Rxe7
{[%clk 0:01:46.4]} 26... Rxe7 {[%clk 0:01:44.8]} 27. Re1 {[%clk 0:01:47]} 27...
Re5 {[%clk 0:01:26]} 28. f4 {[%clk 0:01:40.6]} 28... Re4 {[%clk 0:01:22.7]} 29.
Rxe4 {[%clk 0:01:20]} 29... Bxe4 {[%clk 0:01:22.5]} 30. Qe3 {[%clk 0:01:20.5]}
30... Qd1+ {[%clk 0:01:20.5]} 31. Kf2 {[%clk 0:01:19.4]} 31... f5 {[%clk
0:01:16.1]} 32. Qe1 {[%clk 0:01:11.4]} 32... Qc2+ {[%clk 0:01:14]} 33. Ne2
{[%clk 0:01:02.9]} 33... Qxb2 {[%clk 0:01:12.1]} 34. Qc3 {[%clk 0:00:47.1]}
34... Qxa2 {[%clk 0:01:10.6]} 35. g4 {[%clk 0:00:47]} 35... b5 {[%clk
0:01:03.4]} 36. gxf5 {[%clk 0:00:45.7]} 36... b4 {[%clk 0:00:56.9]} 37. Qe3
{[%clk 0:00:39.9]} 37... Qxc4 {[%clk 0:00:57.1]} 38. Ng3 {[%clk 0:00:31.4]}
38... Qc2+ {[%clk 0:00:51.7]} 39. Ke1 {[%clk 0:00:29.2]} 39... Qb1+ {[%clk
0:00:39.2]} 40. Kf2 {[%clk 0:00:25.9]} 40... Qa2+ {[%clk 0:00:35.5]} 41. Ke1
{[%clk 0:00:23.2]} 41... Qb1+ {[%clk 0:00:17]} 42. Kf2 {[%clk 0:00:23.2]} 42...
Qb2+ {[%clk 0:00:16.7]} 43. Ke1 {[%clk 0:00:21.8]} 43... Qb1+ {[%clk 0:00:13.9]}
1/2-1/2

[Event "*** Titled Tuesday Blitz"]
[Site "Chess.com"]
[Date "2020.04.21"]
[Round "9"]
[White "ferch1ni"]
[Black "woodhy"]
[Result "0-1"]
[WhiteElo "2302"]
[BlackElo "2301"]
[TimeControl "180+1"]
[EndTime "11:49:50 PDT"]
[Termination "woodhy won by resignation"]

1. e4 {[%clk 0:03:00.9]} 1... e6 {[%clk 0:02:58.8]} 2. d4 {[%clk 0:02:59.7]}
2... d5 {[%clk 0:02:58.6]} 3. e5 {[%clk 0:03:00.4]} 3... c5 {[%clk 0:02:58.5]}
4. c3 {[%clk 0:03:01.1]} 4... Nc6 {[%clk 0:02:56]} 5. Nf3 {[%clk 0:03:01.8]}
5... Nge7 {[%clk 0:02:54.9]} 6. a3 {[%clk 0:03:01.7]} 6... a5 {[%clk 0:02:49.1]}
7. Bd3 {[%clk 0:02:59.8]} 7... cxd4 {[%clk 0:02:49.1]} 8. cxd4 {[%clk
0:02:59.9]} 8... Bd7 {[%clk 0:02:47.3]} 9. Nc3 {[%clk 0:02:58.6]} 9... Qb6
{[%clk 0:02:47.4]} 10. Na4 {[%clk 0:02:53.3]} 10... Qa7 {[%clk 0:02:40.8]} 11.
Nc5 {[%clk 0:02:52.9]} 11... Bc8 {[%clk 0:02:00.2]} 12. Be3 {[%clk 0:02:41.9]}
12... b6 {[%clk 0:01:56.9]} 13. Na4 {[%clk 0:02:33.4]} 13... Ba6 {[%clk
0:01:56.9]} 14. O-O {[%clk 0:02:32.1]} 14... Bxd3 {[%clk 0:01:54.8]} 15. Qxd3
{[%clk 0:02:33]} 15... Qa6 {[%clk 0:01:52.3]} 16. Qxa6 {[%clk 0:02:13.8]} 16...
Rxa6 {[%clk 0:01:53.2]} 17. Nc3 {[%clk 0:02:14.3]} 17... h6 {[%clk 0:01:50.3]}
18. Nb5 {[%clk 0:02:14]} 18... Kd7 {[%clk 0:01:50.4]} 19. Rfc1 {[%clk
0:01:48.4]} 19... Nf5 {[%clk 0:01:49.2]} 20. g4 {[%clk 0:01:38.3]} 20... Nxe3
{[%clk 0:01:44.1]} 21. fxe3 {[%clk 0:01:39.2]} 21... Be7 {[%clk 0:01:44.2]} 22.
Rf1 {[%clk 0:01:37.7]} 22... Na7 {[%clk 0:01:42.1]} 23. Nc3 {[%clk 0:01:34.7]}
23... b5 {[%clk 0:01:40.8]} 24. Ne1 {[%clk 0:01:16.3]} 24... f6 {[%clk
0:01:38.2]} 25. Nd3 {[%clk 0:01:15]} 25... Rf8 {[%clk 0:01:34.9]} 26. b4 {[%clk
0:00:55.7]} 26... Rc6 {[%clk 0:01:28.8]} 27. Rac1 {[%clk 0:00:39.4]} 27... axb4
{[%clk 0:01:25.9]} 28. axb4 {[%clk 0:00:35.1]} 28... Rc4 {[%clk 0:01:25.6]} 29.
exf6 {[%clk 0:00:32.6]} 29... gxf6 {[%clk 0:01:23.8]} 30. Rf2 {[%clk 0:00:20.2]}
30... Rfc8 {[%clk 0:01:18.3]} 31. Nc5+ {[%clk 0:00:20.1]} 31... Bxc5 {[%clk
0:01:16.9]} 32. bxc5 {[%clk 0:00:20.4]} 32... b4 {[%clk 0:01:13.8]} 33. Ne2
{[%clk 0:00:19.1]} 33... Ke7 {[%clk 0:01:10.5]} 34. Kf1 {[%clk 0:00:16.9]} 34...
Nb5 {[%clk 0:01:09.8]} 35. Ke1 {[%clk 0:00:16.4]} 35... Ra8 {[%clk 0:01:09.1]}
36. Kd1 {[%clk 0:00:15.6]} 36... Ra2 {[%clk 0:01:07.1]} 37. Rf3 {[%clk
0:00:12.5]} 37... b3 {[%clk 0:00:55]} 38. Rb1 {[%clk 0:00:08.8]} 38... Rxe2
{[%clk 0:00:50.4]} 39. Rxb3 {[%clk 0:00:07.2]} 39... Rxh2 {[%clk 0:00:40]} 40.
Rxb5 {[%clk 0:00:06.9]} 40... Ra4 {[%clk 0:00:40]} 41. Rb7+ {[%clk 0:00:06.6]}
41... Ke8 {[%clk 0:00:39.2]} 42. Rb1 {[%clk 0:00:03.5]} 42... Raa2 {[%clk
0:00:38.5]} 43. c6 {[%clk 0:00:02.7]} 43... Rh1+ {[%clk 0:00:37.2]} 0-1

[Event "*** Titled Tuesday Blitz"]
[Site "Chess.com"]
[Date "2020.04.21"]
[Round "9"]
[White "Volodar_Murzin"]
[Black "eightbyeightchess"]
[Result "1-0"]
[WhiteElo "2645"]
[BlackElo "2471"]
[TimeControl "180+1"]
[EndTime "11:49:51 PDT"]
[Termination "Volodar_Murzin won by resignation"]

1. d4 {[%clk 0:03:00.9]} 1... d5 {[%clk 0:02:59.7]} 2. Nf3 {[%clk 0:03:00.7]}
2... Nf6 {[%clk 0:02:59.5]} 3. Bf4 {[%clk 0:02:59.7]} 3... Bf5 {[%clk
0:02:58.6]} 4. Nbd2 {[%clk 0:02:59.2]} 4... e6 {[%clk 0:02:58.2]} 5. e3 {[%clk
0:02:59.1]} 5... Bd6 {[%clk 0:02:58]} 6. Bg3 {[%clk 0:02:58.8]} 6... Ne4 {[%clk
0:02:53.1]} 7. Nxe4 {[%clk 0:02:55.7]} 7... Bxe4 {[%clk 0:02:53.6]} 8. Bd3
{[%clk 0:02:53]} 8... f5 {[%clk 0:02:51.1]} 9. Ne5 {[%clk 0:02:47.9]} 9... O-O
{[%clk 0:02:39.5]} 10. f3 {[%clk 0:02:46.5]} 10... Bxd3 {[%clk 0:02:39.2]} 11.
Nxd3 {[%clk 0:02:41.6]} 11... Bxg3+ {[%clk 0:02:36.4]} 12. hxg3 {[%clk
0:02:40.5]} 12... Qg5 {[%clk 0:02:36.9]} 13. Kf2 {[%clk 0:02:40.1]} 13... Nd7
{[%clk 0:02:37.3]} 14. Qg1 {[%clk 0:02:32.5]} 14... h6 {[%clk 0:02:28]} 15. Qh2
{[%clk 0:02:30]} 15... a5 {[%clk 0:02:23.7]} 16. Qh4 {[%clk 0:02:20.1]} 16...
Qg6 {[%clk 0:02:17.9]} 17. a4 {[%clk 0:02:11.6]} 17... Rac8 {[%clk 0:02:15.3]}
18. c3 {[%clk 0:02:07.1]} 18... Rf7 {[%clk 0:02:09.6]} 19. Nf4 {[%clk
0:02:04.9]} 19... Qf6 {[%clk 0:02:03.2]} 20. Qxf6 {[%clk 0:02:04]} 20... Rxf6
{[%clk 0:02:04.1]} 21. b4 {[%clk 0:02:03.5]} 21... axb4 {[%clk 0:01:58.9]} 22.
cxb4 {[%clk 0:02:03.3]} 22... Ra8 {[%clk 0:01:58.8]} 23. Rhc1 {[%clk 0:02:01.3]}
23... c6 {[%clk 0:01:58.9]} 24. a5 {[%clk 0:01:59.5]} 24... g5 {[%clk
0:01:53.7]} 25. Nd3 {[%clk 0:01:57.7]} 25... Rff8 {[%clk 0:01:50.6]} 26. a6
{[%clk 0:01:55.9]} 26... Rxa6 {[%clk 0:01:43.8]} 27. Rxa6 {[%clk 0:01:54.7]}
27... bxa6 {[%clk 0:01:43.7]} 28. Rxc6 {[%clk 0:01:55.1]} 28... Kf7 {[%clk
0:01:36.1]} 29. Rxa6 {[%clk 0:01:52.1]} 29... Kf6 {[%clk 0:01:35.5]} 30. Nc5
{[%clk 0:01:42.7]} 30... Nxc5 {[%clk 0:01:33.5]} 31. dxc5 {[%clk 0:01:42.4]}
31... Rb8 {[%clk 0:01:33]} 32. Rb6 {[%clk 0:01:42.2]} 32... Ra8 {[%clk
0:01:31.6]} 33. b5 {[%clk 0:01:41.3]} 33... Ra2+ {[%clk 0:01:29.3]} 34. Kg1
{[%clk 0:01:41.7]} 34... Rc2 {[%clk 0:01:29.4]} 35. c6 {[%clk 0:01:41.3]} 35...
Ke7 {[%clk 0:01:29.3]} 36. Rb7+ {[%clk 0:01:40.5]} 36... Kd8 {[%clk 0:01:13.4]}
37. Kf1 {[%clk 0:01:26.4]} 37... h5 {[%clk 0:01:03]} 38. Rd7+ {[%clk 0:01:16.9]}
38... Kc8 {[%clk 0:00:58.7]} 39. Rd6 {[%clk 0:01:14.8]} 39... Rb2 {[%clk
0:00:53.2]} 40. Rxe6 {[%clk 0:01:14.7]} 40... Rxb5 {[%clk 0:00:51.8]} 41. Re5
{[%clk 0:01:15.1]} 41... Kc7 {[%clk 0:00:16.9]} 42. Rxf5 {[%clk 0:01:14.4]}
42... Kxc6 {[%clk 0:00:17.2]} 43. Rxg5 {[%clk 0:01:14.4]} 43... Rb1+ {[%clk
0:00:17.7]} 44. Kf2 {[%clk 0:01:14.6]} 44... Rb2+ {[%clk 0:00:18.3]} 45. Kg1
{[%clk 0:01:14.6]} 45... Rb1+ {[%clk 0:00:18.7]} 46. Kh2 {[%clk 0:01:14.1]}
46... Re1 {[%clk 0:00:19.2]} 47. Re5 {[%clk 0:01:13.5]} 47... Kd6 {[%clk
0:00:18.2]} 48. f4 {[%clk 0:01:13.4]} 48... Re2 {[%clk 0:00:14.8]} 49. g4 {[%clk
0:01:10.2]} 49... hxg4 {[%clk 0:00:14.3]} 50. Kg3 {[%clk 0:01:10.5]} 50... Rd2
{[%clk 0:00:12.6]} 51. Re8 {[%clk 0:01:07.9]} 51... Re2 {[%clk 0:00:11.4]} 52.
f5 {[%clk 0:01:03.2]} 52... d4 {[%clk 0:00:10.6]} 53. Re6+ {[%clk 0:01:01.8]}
53... Kd7 {[%clk 0:00:10.1]} 54. exd4 {[%clk 0:01:01.9]} 54... Rd2 {[%clk
0:00:09.5]} 55. Re4 {[%clk 0:01:00]} 55... Kd6 {[%clk 0:00:09.1]} 56. f6 {[%clk
0:00:59.6]} 1-0

[Event "*** Titled Tuesday Blitz"]
[Site "Chess.com"]
[Date "2020.04.21"]
[Round "9"]
[White "Yeytruyol"]
[Black "mirochka"]
[Result "0-1"]
[WhiteElo "2354"]
[BlackElo "2194"]
[TimeControl "180+1"]
[EndTime "11:49:51 PDT"]
[Termination "mirochka won by checkmate"]

1. e4 {[%clk 0:03:00.9]} 1... c5 {[%clk 0:02:59.1]} 2. d4 {[%clk 0:02:59.7]}
2... cxd4 {[%clk 0:02:57.9]} 3. c3 {[%clk 0:03:00]} 3... dxc3 {[%clk 0:02:57.2]}
4. Nxc3 {[%clk 0:03:00.9]} 4... Nc6 {[%clk 0:02:55.3]} 5. Nf3 {[%clk 0:03:01.8]}
5... e6 {[%clk 0:02:55.5]} 6. Bc4 {[%clk 0:03:01.7]} 6... Nge7 {[%clk
0:02:54.2]} 7. Bg5 {[%clk 0:03:00.1]} 7... Qa5 {[%clk 0:02:51.4]} 8. O-O {[%clk
0:02:57.8]} 8... a6 {[%clk 0:02:48.7]} 9. Re1 {[%clk 0:02:51.4]} 9... Ng6 {[%clk
0:02:39.3]} 10. a3 {[%clk 0:02:43.8]} 10... b5 {[%clk 0:02:25.7]} 11. Ba2 {[%clk
0:02:39]} 11... Qb6 {[%clk 0:02:19.3]} 12. Nd5 {[%clk 0:02:29.8]} 12... Qb8
{[%clk 0:02:10]} 13. Rc1 {[%clk 0:02:22.4]} 13... Bd6 {[%clk 0:02:05]} 14. h4
{[%clk 0:01:14.2]} 14... O-O {[%clk 0:01:51.9]} 15. h5 {[%clk 0:01:10.6]} 15...
Nge5 {[%clk 0:01:37.5]} 16. Nxe5 {[%clk 0:01:07.6]} 16... Bxe5 {[%clk
0:01:35.6]} 17. h6 {[%clk 0:01:05.3]} 17... exd5 {[%clk 0:01:29.2]} 18. hxg7
{[%clk 0:01:02.2]} 18... Bxg7 {[%clk 0:01:26.1]} 19. exd5 {[%clk 0:00:59.8]}
19... Ne5 {[%clk 0:01:15.9]} 20. d6 {[%clk 0:00:54.7]} 20... Bb7 {[%clk
0:01:14.3]} 21. f4 {[%clk 0:00:47.1]} 21... Qa7+ {[%clk 0:01:02.6]} 22. Kh2
{[%clk 0:00:34.8]} 22... Nc4 {[%clk 0:00:33.5]} 23. Qg4 {[%clk 0:00:29.3]} 23...
Kh8 {[%clk 0:00:31.5]} 24. Rc3 {[%clk 0:00:20.4]} 24... Qf2 {[%clk 0:00:28]} 25.
Rg3 {[%clk 0:00:20.2]} 25... Qxe1 {[%clk 0:00:22.4]} 26. Bxc4 {[%clk 0:00:19.7]}
26... bxc4 {[%clk 0:00:21.5]} 27. Bh4 {[%clk 0:00:19.8]} 27... Rg8 {[%clk
0:00:20.4]} 28. Rh3 {[%clk 0:00:19.5]} 28... Qe4 {[%clk 0:00:18.8]} 29. Bg5
{[%clk 0:00:18.9]} 29... Qxg2+ {[%clk 0:00:17.2]} 30. Qxg2 {[%clk 0:00:18.3]}
30... Bxg2 {[%clk 0:00:17.7]} 31. Kxg2 {[%clk 0:00:19.2]} 31... Bxb2 {[%clk
0:00:17.1]} 32. Kf3 {[%clk 0:00:19.5]} 32... f6 {[%clk 0:00:15.1]} 33. Rh6
{[%clk 0:00:20.1]} 33... fxg5 {[%clk 0:00:14.2]} 34. fxg5 {[%clk 0:00:21]} 34...
Raf8+ {[%clk 0:00:12.8]} 35. Ke4 {[%clk 0:00:21.9]} 35... Re8+ {[%clk
0:00:12.7]} 36. Kd5 {[%clk 0:00:22.2]} 36... Re6 {[%clk 0:00:13.2]} 37. Kxc4
{[%clk 0:00:22.1]} 37... Rxh6 {[%clk 0:00:11.2]} 38. gxh6 {[%clk 0:00:23]} 38...
Bxa3 {[%clk 0:00:11.5]} 39. Kd5 {[%clk 0:00:23.5]} 39... Bxd6 {[%clk 0:00:12.1]}
40. Kxd6 {[%clk 0:00:23.7]} 40... Rg6+ {[%clk 0:00:12.7]} 41. Kxd7 {[%clk
0:00:24.5]} 41... Rxh6 {[%clk 0:00:13.4]} 42. Ke8 {[%clk 0:00:25.1]} 42... a5
{[%clk 0:00:13.6]} 43. Kf8 {[%clk 0:00:26]} 43... a4 {[%clk 0:00:14.2]} 44. Kf7
{[%clk 0:00:26.7]} 44... a3 {[%clk 0:00:15]} 45. Kf8 {[%clk 0:00:27.6]} 45... a2
{[%clk 0:00:15.7]} 46. Kf7 {[%clk 0:00:28.5]} 46... a1=Q {[%clk 0:00:15]} 47.
Kf8 {[%clk 0:00:28.5]} 47... Qa7 {[%clk 0:00:15.5]} 48. Ke8 {[%clk 0:00:28.5]}
48... Rb6 {[%clk 0:00:15.7]} 49. Kf8 {[%clk 0:00:29.4]} 49... Rb8# {[%clk
0:00:16.2]} 0-1